[Event "European Women-ch 2023"]
[Site "Petrovac"]
[Date "2023.03.21"]
[Round "4.14"]
[White "Tsirulnik, Maritsa"]
[Black "Manova, Ivana"]
[Result "1/2-1/2"]
[ECO "D35"]
[WhiteElo "2121"]
[BlackElo "1923"]
[Annotator "TA"]
[PlyCount "95"]
[EventDate "2023.03.15"]
[EventType "swiss"]
[EventCountry "MNE"]
[SourceTitle "playchess.com"]
[Source "ChessBase"]
[SourceQuality "1"]
[TimeControl "40/5400+30:1800+30"]

{[%evp 14,95,35,39,50,13,24,16,17,22,25,18,34,0,0,0,25,25,27,32,25,25,44,0,12,0,0,-70,54,0,-8,-148,-146,-515,-510,-515,-500,-471,-181,-187,-180,-180,-177,-170,-170,-170,-175,-188,-141,-135,-135,-145,-135,-133,-139,-142,-103,-103,-103,-103,-59,-49,-41,-44,-41,-41,-40,-62,-62,-59,-35,-35,-35,-33,-16,-69,-69,-69,-69,-69,-69,-69,-68,-29987]} 1. d4 {[%emt 0:00:03]} Nf6 {[%emt 0:00:57]} 2. c4 {[%emt 0:00:06]} e6 {[%emt 0:00:10]} 3. Nc3 {[%emt 0:00:07]} d5 {[%emt 0:00:34]} 4. cxd5 {[%emt 0:00:13]} exd5 {[%emt 0:00:06]} 5. Bg5 {[%emt 0:00:06]} Be7 {[%emt 0:01:09]} 6. e3 {[%emt 0:01:43]} c6 {[%emt 0:02:53]} 7. Bd3 {[%emt 0:00:10]} Bg4 {[%emt 0:02:41]} 8. Nge2 {[%emt 0:09:13]} Ne4 {[%emt 0:06:28][%mdl 64] [#] Discovered Attack. D35: Queen's Gambit Declined: Exchange Variation.} 9. Bxe7 {[%emt 0:04:27]} Qxe7 {[%emt 0:03:34]} 10. Bxe4 {[%emt 0:14:02]} dxe4 {[%emt 0:01:33] [#] The position is equal.} 11. h3 $146 {[%emt 0:31:33]} ({Predecessor:} 11. Qb3 Bxe2 12. Nxe2 O-O 13. O-O Na6 14. f3 Rad8 15. fxe4 Qxe4 16. Ng3 Qe6 17. Qxb7 {½-½ Gordievsky,D (2435)-Krapivin,A (2433) Moscow-ch 2014 (9)}) 11... Bxe2 {[%emt 0:03:57]} 12. Qxe2 {[%emt 0:00:03]} O-O {[%emt 0:07:50]} 13. O-O-O {[%emt 0:00:25]} Nd7 {[%emt 0:03:38]} 14. d5 {[%emt 0:02:59]} Rac8 {[%emt 0:04:09]} 15. Kb1 {[%emt 0:04:42]} (15. d6 {is more complex.} Qe5 16. Qc4 Rfe8 17. Qd4) 15... Nc5 {[%emt 0:05:54]} 16. Rd4 {[%emt 0:05:37]} cxd5 {[%emt 0:20:40]} 17. Nxd5 {[%emt 0:00:09]} Qe6 {[%emt 0:04:59]} 18. Qg4 {[%emt 0:06:09] next Qxe6 is good for White.} f5 {[%emt 0:00:47]} 19. Qg5 {[%emt 0:01:50]} Kh8 {[%emt 0:10:21]} 20. g4 {[%emt 0:00:42]} (20. Nf4 $11 Qb6 21. Qe7) 20... g6 {[%emt 0:08:47]} (20... Nd3 $15 21. a3 fxg4 22. Qxg4 Qxg4 23. hxg4 Nxf2) 21. Qh6 {[%emt 0:04:39]} (21. Nf4 $1 $14 Qe8 22. Rd6) 21... Nd3 $36 {[%emt 0:01:19][%mdl 2048] Threatens to win with ...Qc6. Black fights for an advantage.} (21... fxg4 22. hxg4 Rf7 23. Nf4 $16) 22. Nf4 {[%emt 0:04:30] [#]} (22. a3 $1 $11) 22... Qc6 $1 $17 {[%emt 0:02:40]} 23. Nxg6+ $2 {[%emt 0:03:31][%mdl 8192]} (23. Nxd3 $17 {is tougher.} exd3 24. e4) 23... Qxg6 $19 {[%emt 0:00:27]} 24. Qxg6 {[%emt 0:00:11]} hxg6 {[%emt 0:00:02]} 25. f3 {[%emt 0:00:43]} Kg7 $2 {[%emt 0:01:03]} (25... Rc7 {...Rfc8 is the strong threat.} 26. a3 Nf2) 26. gxf5 {[%emt 0:00:30]} gxf5 {[%emt 0:03:47] White must now prevent ...Rfd8.} ({Stronger than} 26... Rxf5 27. fxe4 Nf2 28. Rd7+ (28. exf5 Nxh1 29. Rd7+ Kf6 $15) 28... Kf6 29. exf5 $15) 27. fxe4 {[%emt 0:00:27]} fxe4 {[%emt 0:01:53] And now ...Rf2 would win.} 28. Rg1+ {[%emt 0:00:48]} Kf6 {[%emt 0:01:08]} 29. Rxe4 {[%emt 0:00:12]} Ne5 {[%emt 0:00:49]} 30. h4 {[%emt 0:02:54]} Kf5 {[%emt 0:00:33]} (30... Rg8 $19 31. Rxg8 Rxg8 32. Rf4+ Ke6) 31. Rb4 {[%emt 0:00:44]} b6 {[%emt 0:00:22]} 32. a4 {[%emt 0:00:57]} Rg8 {[%emt 0:00:23]} 33. Rxg8 {[%emt 0:01:52]} Rxg8 $17 {[%emt 0:00:01][%mdl 4096] Endgame KRN-KR} 34. a5 {[%emt 0:00:16]} Rg6 {[%emt 0:01:15]} 35. axb6 {[%emt 0:00:50]} axb6 {[%emt 0:00:12]} ({Much worse is} 35... Rxb6 $6 36. Rxb6 axb6 37. Kc2 $11) 36. Kc2 {[%emt 0:00:23] Prevents Nd3} Rc6+ {[%emt 0:00:51]} 37. Kb3 {[%emt 0:00:26]} Nd3 {[%emt 0:00:27]} 38. Rd4 {[%emt 0:00:30]} Nc5+ {[%emt 0:00:21]} 39. Kb4 {[%emt 0:00:28]} Re6 {[%emt 0:00:33]} 40. Rf4+ {[%emt 0:00:00]} Kg6 {[%emt 0:00:00] ...Nd3+ would be deadly.} 41. Kb5 {[%emt 0:02:57]} Ne4 {[%emt 0:08:17]} 42. Rf8 {[%emt 0:08:24]} Nf6 {[%emt 0:02:05]} 43. Rc8 {[%emt 0:00:49]} Rxe3 {[%emt 0:10:19]} (43... Kf5 $5 {[%cal Rf6d5]}) 44. Kxb6 {[%emt 0:03:12]} (44. b4 $11) 44... Rb3+ $1 $15 {[%emt 0:00:21] Black is slightly better.} 45. Kc5 {[%emt 0:00:25]} Rxb2 {[%emt 0:00:20] ( -> ...Rc2+)} 46. Ra8 {[%emt 0:01:42]} Rh2 {[%emt 0:00:50]} 47. Ra4 {[%emt 0:00:18]} Kh5 {[%emt 0:01:25]} 48. Kd4 $2 {[%emt 0:00:19][%mdl 40960] Weighted Error Value: White=0.25 (precise) /Black=0.22 (precise) . An unexpected result.} (48. Kd6 $15) 1/2-1/2

[Event "European Women-ch 2023"]
[Site "Petrovac"]
[Date "2023.03.21"]
[Round "4.14"]
[White "Makka, Ioulia"]
[Black "Zimina, Olga"]
[Result "0-1"]
[ECO "C65"]
[WhiteElo "1949"]
[BlackElo "2295"]
[Annotator "TA"]
[PlyCount "80"]
[EventDate "2023.03.15"]
[EventType "swiss"]
[EventCountry "MNE"]
[SourceTitle "playchess.com"]
[Source "ChessBase"]
[SourceQuality "1"]
[TimeControl "40/5400+30:1800+30"]

{[%evp 9,80,14,16,13,21,10,11,-11,-11,-28,-18,-49,-45,-50,-48,-103,-106,-99,-104,-231,-245,-358,-360,-346,-350,-345,-360,-362,-347,-350,-337,-600,-589,-700,-589,-587,-573,-572,-332,-353,-345,-339,-324,-382,-392,-384,-392,-364,-371,-344,-313,-427,-435,-557,-546,-693,-682,-657,-615,-774,-774,-746,-750,-818,-812,-816,-808,-758,-728,-967,-945,-880,-841]} 1. e4 {[%emt 0:00:03]} e5 {[%emt 0:01:19]} 2. Nf3 {[%emt 0:00:11]} Nc6 {[%emt 0:00:08]} 3. Bb5 {[%emt 0:00:19]} Nf6 {[%emt 0:00:05]} 4. d3 {[%emt 0:00:45]} Bc5 {[%emt 0:00:05]} 5. Bxc6 {[%emt 0:02:03]} dxc6 {[%emt 0:00:11]} 6. O-O {[%emt 0:01:14] C65: Ruy Lopez: Berlin Defence (3...Nf6), unusual lines and 4 0-0 Bc5.} Nd7 {[%emt 0:00:50]} 7. Nbd2 {[%emt 0:02:14] 7.c3 is the hot move.} f6 {[%emt 0:00:12]} 8. b3 {[%emt 0:08:28] The position is equal.} Nf8 {[%emt 0:00:42]} 9. Bb2 {[%emt 0:04:48]} Be6 {[%emt 0:03:42]} 10. Re1 {[%emt 0:04:12]} Qd7 {[%emt 0:01:16]} 11. a3 {[%emt 0:02:19] [#]} a6 $146 {[%emt 0:02:35]} ({Predecessor:} 11... Ng6 12. Nf1 Rd8 13. Bc1 Be7 14. Be3 c5 15. Ng3 a5 16. a4 h5 17. h3 h4 {½-½ Kravtsiv,M (2641)-Steingrimsson,H (2574) EU-ch 17th Gjakova 2016 (9)}) 12. Bc3 {[%emt 0:06:07]} (12. b4 $15 Ba7 13. Nf1) 12... g5 $17 {[%emt 0:03:04][%cal Bg7g5,Bg5g4][%mdl 32] Black is more active.} 13. Nf1 {[%emt 0:04:36]} O-O-O {[%emt 0:02:20]} 14. Qc1 {[%emt 0:03:35]} (14. Ne3 $17) 14... Ng6 $19 {[%emt 0:06:38]} 15. Qb2 {[%emt 0:08:00]} (15. Ne3 {keeps fighting.}) 15... g4 {[%emt 0:00:44]} 16. N3d2 {[%emt 0:00:38]} h5 {[%emt 0:08:04]} 17. b4 {[%emt 0:03:07]} Ba7 {[%emt 0:03:57]} 18. Nb3 {[%emt 0:05:38]} Bxb3 {[%emt 0:15:27]} 19. Qxb3 {[%emt 0:01:26]} h4 {[%emt 0:00:06][%cal Og4g3] ...g3! would be deadly.} 20. Ne3 $2 {[%emt 0:03:31] [#]} (20. Bd2 g3 21. Be3 gxh2+ 22. Nxh2) 20... g3 $1 {[%emt 0:03:43][%mdl 512]} 21. fxg3 {[%emt 0:18:31]} (21. hxg3 hxg3) 21... hxg3 {[%emt 0:23:36]} 22. hxg3 {[%emt 0:00:32]} Qg4 {[%emt 0:00:10]} ({And not} 22... Qh7 23. Qe6+ (23. Kf2 $2 Qh2 $17) 23... Kb8 24. Qh3 $17 (24. Kf2 Qh2 $17)) 23. Kf2 {[%emt 0:07:41]} Rhg8 {[%emt 0:04:34][%cal Og6f4] And now ...Nf4! would win.} 24. d4 {[%emt 0:06:08]} Qxe4 {[%emt 0:00:41]} 25. Qe6+ {[%emt 0:00:43]} Kb8 {[%emt 0:00:04]} 26. Qf5 {[%emt 0:01:27]} Qxf5+ {[%emt 0:00:38]} 27. Nxf5 {[%emt 0:00:02]} exd4 {[%emt 0:00:10]} ({Weaker is} 27... Bxd4+ 28. Bxd4 exd4 29. Rad1 $17) 28. Bd2 {[%emt 0:02:40]} d3+ {[%emt 0:01:13]} 29. Be3 {[%emt 0:00:26]} dxc2 {[%emt 0:00:42] [#] aiming for ...Ne5.} 30. Bxa7+ {[%emt 0:00:59]} Kxa7 {[%emt 0:00:03] Black is clearly winning.} 31. Rac1 {[%emt 0:00:18]} Ne5 {[%emt 0:00:11]} 32. Rxc2 {[%emt 0:02:13]} Nd3+ {[%emt 0:00:07]} 33. Kf1 {[%emt 0:00:11]} Rg5 {[%emt 0:02:25]} 34. Ne3 {[%emt 0:01:16]} Nxe1 {[%emt 0:00:09]} 35. Kxe1 {[%emt 0:00:10][%mdl 4096] Endgame KRR-KRN} Rd3 {[%emt 0:01:28]} 36. Kf2 {[%emt 0:00:30]} Rxa3 {[%emt 0:00:10]} 37. Rc4 {[%emt 0:00:30]} Re5 {[%emt 0:03:32]} 38. Ng4 {[%emt 0:00:31]} Rd5 {[%emt 0:00:08]} 39. Rf4 {[%emt 0:00:53]} Rd2+ {[%emt 0:02:01]} 40. Kg1 {[%emt 0:00:00]} Rxg3 {[%emt 0:00:00] Black took control after the opening.   Weighted Error Value: White=0.61/Black=0.19 (very precise)} 0-1

[Event "European Women-ch 2023"]
[Site "Petrovac"]
[Date "2023.03.21"]
[Round "4.15"]
[White "Lazarne Vajda, Szidonia"]
[Black "Kobak, Polina"]
[Result "1-0"]
[ECO "D02"]
[WhiteElo "2294"]
[BlackElo "1815"]
[Annotator "TA"]
[PlyCount "111"]
[EventDate "2023.03.15"]
[EventType "swiss"]
[EventCountry "MNE"]
[SourceTitle "playchess.com"]
[Source "ChessBase"]
[SourceQuality "1"]
[TimeControl "40/5400+30:1800+30"]

{[%evp 15,111,0,0,-2,-3,-5,0,-10,8,0,2,-8,0,0,-6,-29,-24,-39,-6,-7,29,19,65,55,65,62,56,62,164,108,397,366,390,387,391,408,454,382,466,457,487,308,399,276,284,150,214,189,242,193,201,194,245,249,238,173,282,304,282,244,399,322,268,36,304,225,204,192,227,234,216,229,231,227,191,204,250,256,479,492,506,499,479,495,506,498,494,492,475,463,455,410,1034,797,1747,1651,1533,1495]} 1. d4 {[%emt 0:00:07]} d5 {[%emt 0:00:08]} 2. Nf3 {[%emt 0:00:34]} Nf6 {[%emt 0:00:14]} 3. Bf4 {[%emt 0:01:00]} c5 {[%emt 0:00:09]} 4. e3 {[%emt 0:00:36]} Nc6 {[%emt 0:00:22]} 5. Nbd2 {[%emt 0:00:31]} e6 {[%emt 0:02:40]} 6. c3 {[%emt 0:02:06]} Bd6 {[%emt 0:01:02]} 7. Bg3 {[%emt 0:01:25]} O-O {[%emt 0:02:04]} 8. Bd3 {[%emt 0:01:06]} b6 {[%emt 0:03:25]} 9. Ne5 {[%emt 0:04:40] D02: 1 d4 d5 2 Nf3 sidelines, including 2...Nf6 3 g3 and 2...Nf6 3 Bf4.} Qc7 {[%emt 0:05:48][%cal Rc6e5]} 10. f4 {[%emt 0:00:51]} Bb7 {[%emt 0:08:57] 10...Bb7 is better than 10...Ne7.} 11. Bh4 {[%emt 0:07:08] The position is equal.} Be7 {[%emt 0:08:43][%cal Of6e4]} 12. Bxf6 {[%emt 0:06:02][%mdl 64] Remove Defender} Bxf6 {[%emt 0:00:10]} 13. O-O {[%emt 0:05:37]} (13. Qg4 {is interesting.} a5 14. O-O Bd8 15. Qh3) 13... g6 {[%emt 0:20:11] [#]} 14. Qg4 $146 {[%emt 0:15:13]} ({Predecessor:} 14. g4 Bg7 15. Nxc6 Bxc6 16. g5 b5 17. Nf3 b4 18. Ne5 Rab8 19. Rf2 Bb5 20. Bxb5 Rxb5 {0-1 Lopez Quevedo,E (2197)-Arias Igual,A (2279) ESP-chT Rapid 2022 (8)}) 14... Bg7 {[%emt 0:03:31]} 15. Nxc6 {[%emt 0:06:43]} (15. Ndf3 {looks sharper.} Ne7 16. Qh3 Qc8 17. Bb5) 15... Bxc6 {[%emt 0:02:17]} 16. h4 {[%emt 0:00:12][%cal Bh2h4,Bh4h5][%mdl 32]} Qd7 {[%emt 0:08:39]} 17. Qe2 {[%emt 0:05:11]} f6 {[%emt 0:05:14]} 18. h5 {[%emt 0:01:19]} e5 {[%emt 0:01:33]} (18... f5 $11) 19. hxg6 $14 {[%emt 0:19:14] White is more active.} e4 $1 {[%emt 0:00:11]} 20. gxh7+ {[%emt 0:00:20]} Kh8 $1 {[%emt 0:00:18]} 21. Ba6 {[%emt 0:02:28]} Qf5 {[%emt 0:03:15]} (21... f5 $14) 22. Kf2 {[%emt 0:00:45]} (22. dxc5 $18 bxc5 23. Nb3 (23. Bb5 Bxb5 24. Qxb5 Rab8 $16)) 22... Kxh7 $2 {[%emt 0:02:48][%mdl 8192]} (22... Rf7 $16 23. Rh1 Bf8) 23. Rh1+ $18 {[%emt 0:00:30]} Kg8 {[%emt 0:00:16]} 24. Rh5 {[%emt 0:02:04]} Qd7 {[%emt 0:01:05]} 25. Rah1 {[%emt 0:00:16]} Rf7 {[%emt 0:06:01]} 26. Rh7 {[%emt 0:01:30]} Kf8 {[%emt 0:00:33]} 27. Qh5 {[%emt 0:00:13] Threatens to win with Qg6.} Ke7 {[%emt 0:00:43]} 28. Rh3 {[%emt 0:04:16]} Raf8 {[%emt 0:01:50]} 29. Be2 {[%emt 0:00:54]} f5 {[%emt 0:01:25]} 30. g4 {[%emt 0:00:18]} (30. Qg6 $18 Bf6 31. dxc5 bxc5 32. g4 fxg4 33. Bxg4) 30... Kd8 {[%emt 0:01:33]} (30... cxd4 $16 {was worth a try.} 31. cxd4 fxg4 32. Bxg4 Qd6) 31. gxf5 {[%emt 0:00:59] dxc5 would be deadly.} Qe7 {[%emt 0:01:01]} (31... cxd4 {was called for.} 32. cxd4 Qc7) 32. Qg6 {[%emt 0:01:10]} Bd7 {[%emt 0:00:56] [#]} 33. Bg4 {[%emt 0:01:00] dxc5 is the strong threat.} cxd4 {[%emt 0:02:05]} (33... Bf6 {is a better defense.} 34. dxc5 bxc5) 34. cxd4 {[%emt 0:00:18]} Bf6 {[%emt 0:00:47]} 35. a3 {[%emt 0:03:29]} Kc8 {[%emt 0:01:37]} (35... Be8 $142 36. Nb1 Qd6) 36. Nb1 {[%emt 0:01:02]} Be8 {[%emt 0:00:25]} 37. Nc3 {[%emt 0:00:31]} Qd6 {[%emt 0:00:38]} (37... Qd8 38. Be2 Kb8) 38. Rxf7 {[%emt 0:01:42]} Bxf7 {[%emt 0:00:25]} 39. Qh7 {[%emt 0:01:44]} ({White must play} 39. Nb5 $1 $18 {[%cal Rb5d6]} Qe7 40. Rh7 (40. Nxa7+ Kb7 $17) 40... Bxg6 41. Rxe7 Bxe7 42. fxg6+ Kd8 43. Be6 (43. Nxa7 Bh4+ 44. Kg2 Ke7 $18)) 39... Qd7 {[%emt 0:02:22][%mdl 8192]} ({Better is} 39... Bxd4 $1 $14 40. f6+ Kb8 41. exd4 Qxf4+ 42. Ke1 Qxg4) 40. Bh5 {[%emt 0:00:00] aiming for Bxf7.} Rh8 {[%emt 0:00:00]} 41. Qxf7 {[%emt 0:09:51]} Qxf7 {[%emt 0:02:25]} 42. Bxf7 {[%emt 0:00:07]} Rxh3 {[%emt 0:00:04]} 43. Nxd5 {[%emt 0:01:36][%mdl 4096] Endgame KRB-KBN} (43. Bxd5 $6 Bh4+ 44. Ke2 Rh2+ 45. Kd1 Bf2 $16) 43... Bh4+ {[%emt 0:00:57]} 44. Kg2 {[%emt 0:00:27]} Rg3+ {[%emt 0:00:09]} 45. Kh2 {[%emt 0:00:13]} Rf3 {[%emt 0:01:41]} 46. Bh5 {[%emt 0:01:51]} Rf2+ {[%emt 0:00:45]} (46... Rf1 47. Kh3 (47. f6 Kd7 $16) 47... Rh1+ 48. Kg4 Kd7) 47. Kh3 {[%emt 0:00:06]} Bd8 {[%emt 0:00:16]} 48. f6 {[%emt 0:00:51] White threatens f7 and mate.} Kd7 {[%emt 0:01:48]} 49. f7 {[%emt 0:01:34]} Be7 {[%emt 0:00:04] [#]} 50. Nf6+ $1 {[%emt 0:05:32][%mdl 576] Double Attack} Ke6 {[%emt 0:01:03]} 51. Nh7 {[%emt 0:04:41]} (51. Nxe4 Rxb2 52. Bg6 Bf8 53. f5+ Ke7 $18) 51... Rxb2 {[%emt 0:02:19]} 52. f8=Q {[%emt 0:00:09]} ({Not} 52. f8=B Bxf8 53. Nxf8+ Kf6 54. Nd7+ Ke7 $18) 52... Bxf8 {[%emt 0:00:06]} 53. Nxf8+ {[%emt 0:00:04]} Ke7 {[%emt 0:00:56]} (53... Kf6 $142 54. Nd7+ Ke7) 54. Nh7 {[%emt 0:00:30] Strongly threatening f5. White is clearly winning.} Rb3 {[%emt 0:01:26]} 55. f5 {[%emt 0:00:44] And now f6+ would win.} Rxe3+ {[%emt 0:00:05]} 56. Kg2 {[%emt 0:00:36] Weighted Error Value: White=0.34/Black=0.53} 1-0

[Event "European Women-ch 2023"]
[Site "Petrovac"]
[Date "2023.03.21"]
[Round "4.15"]
[White "Paasikangas, Johanna"]
[Black "Zhezhovska, Monika"]
[Result "1-0"]
[ECO "D37"]
[WhiteElo "2115"]
[BlackElo "1761"]
[Annotator "TA"]
[PlyCount "97"]
[EventDate "2023.03.15"]
[EventType "swiss"]
[EventCountry "MNE"]
[SourceTitle "playchess.com"]
[Source "ChessBase"]
[SourceQuality "1"]
[TimeControl "40/5400+30:1800+30"]

{[%evp 9,97,2,24,19,29,0,6,0,7,2,0,0,0,-20,51,0,51,46,39,21,52,50,43,44,108,35,91,118,116,91,158,159,99,64,93,87,158,150,176,77,97,100,93,87,150,147,157,82,161,153,137,146,168,170,161,141,172,154,203,192,202,189,186,192,290,290,286,279,279,279,286,286,286,285,298,263,294,287,344,344,337,333,312,321,239,198,29977,29978,29978,29972]} 1. d4 {[%emt 0:01:26]} d5 {[%emt 0:00:24]} 2. c4 {[%emt 0:00:21]} e6 {[%emt 0:00:16]} 3. Nc3 {[%emt 0:00:26]} Nf6 {[%emt 0:00:34]} 4. Nf3 {[%emt 0:00:51]} a6 {[%emt 0:01:18]} 5. e3 {[%emt 0:03:58]} Be7 {[%emt 0:01:51]} 6. b3 {[%emt 0:02:02] D37: Queen's Gambit Declined: 5 Bf4.} O-O {[%emt 0:02:33]} 7. Be2 {[%emt 0:01:55]} Nbd7 {[%emt 0:04:03]} 8. O-O {[%emt 0:02:26] The position is equal.} b6 {[%emt 0:06:46]} 9. Bb2 {[%emt 0:03:07]} Bb7 {[%emt 0:02:08]} 10. Qc2 {[%emt 0:03:03]} c5 {[%emt 0:05:32]} 11. Rfd1 {[%emt 0:03:20]} Qc7 {[%emt 0:01:43]} (11... cxd4 $11 12. exd4 Rc8) 12. Rac1 {[%emt 0:00:28]} (12. cxd5 $14 exd5 13. dxc5) 12... Rac8 {[%emt 0:01:13]} (12... dxc4 $11 13. Bxc4 cxd4 14. Nxd4 Bd6) 13. cxd5 $14 {[%emt 0:04:34]} exd5 {[%emt 0:01:12]} 14. Qf5 {[%emt 0:04:34] [#]} g6 $146 {[%emt 0:07:27]} ({Predecessor:} 14... Qd6 15. h3 Qe6 16. Bd3 Rfd8 17. Na4 Qxf5 18. Bxf5 g6 19. Bd3 Ne4 20. dxc5 Nexc5 21. Nxc5 Nxc5 {0-1 Willemsma,A (2121)-Nisavic,U (1963) Bodensee op Bregenz 2019 (5)}) 15. Qh3 {[%emt 0:02:07]} Rfd8 {[%emt 0:11:00]} 16. Ng5 {[%emt 0:09:26]} Nf8 {[%emt 0:03:29]} ({Better is} 16... h5 $14) 17. Na4 {[%emt 0:04:04] White has more active pieces.} (17. dxc5 $16 {Hoping for Na4.} bxc5 18. Na4) 17... Ne4 {[%emt 0:06:18]} (17... N6d7 $14 18. Qh6 Bf6) 18. Nxe4 $16 {[%emt 0:02:24]} dxe4 {[%emt 0:00:16]} 19. dxc5 {[%emt 0:01:22]} Rxd1+ {[%emt 0:00:52]} (19... bxc5 $142 20. Qg3 (20. Qh6 Ne6 $14) 20... Qxg3 21. hxg3 Ne6) 20. Bxd1 {[%emt 0:01:04] Threatens to win with Bg4.} bxc5 {[%emt 0:00:44]} 21. Be2 {[%emt 0:02:50]} ({Don't do} 21. Qh6 Ne6 $14) 21... Qd6 {[%emt 0:12:03]} 22. Rd1 {[%emt 0:05:06]} ({Don't take} 22. Qh6 Ne6 $14) 22... Qc6 {[%emt 0:03:05]} ({Black should play} 22... Qc7) 23. Qg3 {[%emt 0:02:27]} Qc7 {[%emt 0:03:34]} 24. Ba3 {[%emt 0:07:34]} (24. Be5 $18 {and White stays clearly on top.} Qa5 25. Bc4) 24... Ne6 {[%emt 0:02:11]} 25. Qxc7 {[%emt 0:02:09]} Rxc7 {[%emt 0:00:08]} 26. Bc4 {[%emt 0:00:23]} Nf8 {[%emt 0:03:17] [#]} (26... Kf8 $142) 27. Nb6 $1 {[%emt 0:02:47]} Bc6 {[%emt 0:05:56]} 28. Bd5 {[%emt 0:09:20]} (28. Nd5 $142 Bxd5 29. Bxd5 (29. Rxd5 Nd7 $16)) 28... Nd7 {[%emt 0:02:17]} (28... Ne6 $16 {was necessary.}) 29. Bxc6 $18 {[%emt 0:00:09]} Nxb6 {[%emt 0:00:05]} 30. Bxe4 {[%emt 0:00:30]} c4 {[%emt 0:01:16] [#]} 31. Bxe7 {[%emt 0:00:11]} Rxe7 {[%emt 0:00:09][%mdl 4096] Endgame KRB-KRN} 32. Bc2 {[%emt 0:00:22]} cxb3 {[%emt 0:01:17]} 33. Bxb3 {[%emt 0:01:36]} Rd7 {[%emt 0:00:38]} (33... Ra7 $16 34. Rd6 Nd7) 34. Rxd7 {[%emt 0:00:36]} Nxd7 {[%emt 0:00:06] KB-KN} 35. Kf1 {[%emt 0:00:18]} Kf8 {[%emt 0:00:09]} 36. Ke2 {[%emt 0:00:22]} Nc5 {[%emt 0:00:16]} (36... Ke7 {keeps fighting.} 37. e4 g5) 37. f3 {[%emt 0:00:23]} Ke7 {[%emt 0:00:43]} 38. Kd2 {[%emt 0:00:33]} f6 {[%emt 0:01:02]} 39. Kc3 {[%emt 0:01:39]} Kd6 {[%emt 0:01:42]} 40. Bg8 {[%emt 0:00:00]} h6 {[%emt 0:00:00]} 41. Kd4 {[%emt 0:07:06]} g5 {[%emt 0:04:58]} 42. Bc4 {[%emt 0:05:34]} a5 {[%emt 0:01:48]} 43. g3 {[%emt 0:03:23][%cal Bg2g3,Bg3f4][%mdl 32]} Nd7 {[%emt 0:02:08]} 44. f4 {[%emt 0:02:57] Prevents Ne5} Nc5 {[%emt 0:01:33]} 45. e4 {[%emt 0:00:30] e5+ is the strong threat.} gxf4 {[%emt 0:01:58]} 46. gxf4 {[%emt 0:00:08] Strongly threatening e5+.} Nd7 {[%emt 0:00:08]} 47. Bb5 {[%emt 0:01:57] Bxd7 would be deadly.} h5 $2 {[%emt 0:02:11]} (47... Nf8 $18 48. e5+ fxe5+ 49. fxe5+ Ke6) 48. Bxd7 {[%emt 0:00:48]} Kxd7 {[%emt 0:00:06]} 49. Kc5 {[%emt 0:00:30] Weighted Error Value: White=0.15 (very precise) /Black=0.44} 1-0